bitfinex-derivatives/quotes_BTCF0:USTF0_20251219
["timestamp","ask_amount","ask_price","bid_price","bid_amount"]
[1766156921415,0.00388,88283.0,88267.0,0.0113343]
[1766156921601,0.00226507,88298.0,88225.0,0.0566985]
[1766156921602,0.00226507,88298.0,88266.0,0.00016992]
[1766156921805,0.00226507,88298.0,88276.0,0.011333]
[1766156922004,0.00226507,88298.0,88282.0,0.0113323]
[1766156922202,0.00226507,88298.0,88285.0,0.011332]
[1766156922422,0.00226507,88298.0,88279.0,0.0113327]
[1766156922910,0.0113307,88295.0,88272.0,0.0038]
[1766156923415,0.00226507,88298.0,88272.0,0.0038]
[1766156923712,0.0113292,88307.0,88273.0,0.11327144]
[1766156923903,0.00076,88308.0,88281.0,0.00016992]
[1766156924100,0.00076,88308.0,88292.0,0.011331]
[1766156924503,0.00076,88308.0,88284.0,0.011332]
[1766156924904,0.0113284,88313.0,88282.0,0.00576]
[1766156925107,0.0113289,88310.0,88282.0,0.00576]
[1766156925620,0.0113296,88304.0,88282.0,0.0170923]
[1766156926312,0.0113291,88308.0,88285.0,0.0113319]
[1766156926710,0.0113295,88305.0,88285.0,0.0113319]
[1766156926911,0.0113294,88306.0,88282.0,0.0170923]
[1766156927307,0.0113294,88306.0,88285.0,0.011332]
[1766156927720,0.0113297,88303.0,88285.0,0.011332]
[1766156927915,0.0113293,88307.0,88285.0,0.011332]
[1766156928116,0.0115676,88320.0,88282.0,0.00576]
[1766156928320,0.00024,88320.0,88281.0,0.00016992]
[1766156928509,0.0113312,88292.0,88281.0,0.00016992]
[1766156928708,0.0113272,88323.0,88281.0,2e-08]
[1766156928709,0.0113315,88290.0,88281.0,2e-08]
[1766156929422,0.0056,88301.0,88278.0,2e-08]
[1766156929610,0.01693,88301.0,88278.0,2e-08]
[1766156929806,0.0113301,88300.0,88278.0,2e-08]
[1766156930117,0.0113317,88288.0,88206.0,0.0567109]
[1766156930315,1.5024021,88314.0,88206.0,0.0567109]
[1766156930316,0.0113343,88268.0,88251.0,0.00016992]
[1766156930511,0.00016957,88268.0,88253.0,0.0113361]
[1766156930716,0.00016957,88268.0,88252.0,0.00192]
[1766156930912,0.00016957,88268.0,88251.0,0.00016992]
[1766156931120,0.00016957,88268.0,88253.0,0.00576]
[1766156932423,7e-08,88268.0,88264.0,0.0113346]
[1766156932621,0.0113326,88281.0,88261.0,0.00576]
[1766156933126,0.0113334,88274.0,88254.0,0.011336]
[1766156933426,0.0113334,88274.0,88256.0,0.00572]
[1766156933624,0.0113334,88274.0,88256.0,0.00588992]
[1766156934521,0.00056,88284.0,88256.0,0.00588992]
[1766156934918,0.0113326,88281.0,88264.0,0.0113346]
[1766156935118,0.0118922,88284.0,88264.0,0.0113346]
[1766156935320,0.0118922,88284.0,88266.0,0.0113343]
[1766156935523,0.00056,88284.0,88256.0,0.00588992]
[1766156935825,0.0113335,88274.0,88256.0,0.00588992]
[1766156936031,0.00056,88284.0,88258.0,0.0113354]
[1766156936325,0.00056,88284.0,88260.0,0.0113351]
[1766156936522,0.0113331,88277.0,88256.0,0.00400992]
[1766156936824,0.0113331,88277.0,88260.0,0.0113351]
[1766156937018,0.0113327,88280.0,88260.0,0.0113351]
[1766156937220,0.011333,88278.0,88257.0,0.0113356]
[1766156937419,0.011333,88278.0,88259.0,0.0113353]
[1766156937916,0.00056,88284.0,88258.0,0.00384]
[1766156938121,0.0113334,88275.0,88258.0,0.00384]
[1766156938325,0.00056,88284.0,88268.0,0.0113341]
[1766156938521,0.00056,88284.0,88258.0,0.00384]
[1766156938825,0.004,88292.0,88261.0,0.011335]
[1766156939125,0.47104445,88310.0,88276.0,0.0113331]
[1766156939126,0.0113309,88294.0,88276.0,0.0113331]
[1766156939317,0.0113289,88310.0,88277.0,0.0038]
[1766156939318,0.02588803,88293.0,88277.0,0.0038]
[1766156939522,0.02588789,88292.0,88277.0,0.0038]
[1766156939831,0.0113313,88291.0,88277.0,0.0038]
[1766156940131,0.00524,88300.0,88277.0,0.0038]
[1766156940429,0.0113312,88291.0,88277.0,0.0038]
[1766156940626,0.00524,88300.0,88277.0,0.0038]
[1766156940931,0.0113319,88286.0,88270.0,0.00128]
[1766156941119,0.06103014,88309.0,88240.0,0.0113377]
[1766156941120,0.0056,88289.0,88240.0,0.0113377]
[1766156941321,0.03165168,88288.0,88244.0,0.0113372]
[1766156941516,0.02589168,88287.0,88265.0,0.0113345]
[1766156941715,0.02589168,88287.0,88264.0,0.0113346]
[1766156941716,0.03722348,88287.0,88264.0,0.0113346]
[1766156941928,0.02589168,88286.0,88266.0,0.0113343]
[1766156942126,0.15258184,88307.0,88272.0,0.0113336]
[1766156942436,0.00016992,88298.0,88289.0,0.0113314]
[1766156942624,0.00016992,88298.0,88281.0,0.00016992]
[1766156942625,0.00576,88306.0,88286.0,0.0038]
[1766156942826,0.0258911,88305.0,88296.0,0.0113305]
[1766156943028,0.0113274,88321.0,88303.0,0.0113296]
[1766156943233,0.00576,88320.0,88300.0,0.01133]
[1766156943631,0.0113277,88319.0,88299.0,0.0113302]
[1766156943836,0.00576,88320.0,88301.0,0.00016992]
[1766156944425,0.0113278,88318.0,88279.0,0.0113327]
[1766156944628,0.47680445,88320.0,88280.0,0.00292]
[1766156944827,0.0113295,88305.0,88284.0,0.011332]
[1766156945026,0.0038,88310.0,88281.0,0.0113325]
[1766156945425,0.00016992,88304.0,88272.0,0.0113335]
[1766156945627,0.0113314,88290.0,88263.0,1.44548]
[1766156945829,0.0113317,88288.0,88269.0,0.011334]
[1766156946132,0.0038,88297.0,88265.0,0.0113345]
[1766156946327,0.0113297,88304.0,88285.0,0.0113319]
[1766156946634,0.0113297,88303.0,88284.0,0.011332]
[1766156946833,0.00016992,88303.0,88287.0,0.0113317]
[1766156947034,0.00016992,88303.0,88286.0,0.00016992]
[1766156947435,0.00016992,88303.0,88297.0,0.0113305]
[1766156947735,0.00576,88311.0,88292.0,0.00264]
[1766156947929,0.0113292,88307.0,88292.0,0.00264]
[1766156948235,0.0113288,88310.0,88289.0,0.0113314]
[1766156948434,0.0113295,88305.0,88290.0,0.00332]
[1766156948629,0.0113291,88308.0,88290.0,0.0113313]
[1766156948829,0.00016992,88306.0,88290.0,0.0149713]
[1766156949027,0.00016992,88306.0,88290.0,0.00364]
[1766156949226,0.00016992,88306.0,88272.0,0.0113336]
[1766156949427,0.0113295,88305.0,88258.0,0.0022661]
[1766156949640,0.00016992,88306.0,88276.0,0.0113331]
[1766156949837,0.00016992,88306.0,88278.0,0.0113328]
[1766156950038,0.00016992,88306.0,88270.0,0.00228]
[1766156950241,0.0113298,88303.0,88279.0,0.00016992]
[1766156950434,0.47104445,88300.0,88270.0,0.00228]
[1766156950644,0.0113322,88284.0,88270.0,0.00228]
[1766156950941,0.0113322,88284.0,88264.0,0.0113346]
[1766156951138,0.0056,88288.0,88258.0,0.0022661]
[1766156951338,0.00016992,88282.0,88264.0,0.00016992]
[1766156951540,0.0113327,88280.0,88264.0,0.00016992]
[1766156951738,0.00016992,88282.0,88264.0,0.00016992]
[1766156952241,0.0113329,88278.0,88264.0,0.00016992]
[1766156952541,0.0113326,88281.0,88264.0,0.00016992]
[1766156953136,0.01150242,88282.0,88264.0,0.01150452]
[1766156953328,0.00016992,88282.0,88264.0,0.00016992]
[1766156953534,0.00016992,88282.0,88265.0,0.0113346]
[1766156953739,0.00016992,88282.0,88264.0,0.00016992]
[1766156953943,0.01150242,88282.0,88264.0,0.00016992]
[1766156954248,0.00016992,88282.0,88264.0,0.01150462]
[1766156954428,0.0113325,88281.0,88264.0,0.01150462]
[1766156954629,0.0113328,88279.0,88235.0,1.4567384]
[1766156954842,0.0113345,88266.0,88236.0,0.00576]
[1766156955042,0.0170945,88266.0,88248.0,0.0113367]
[1766156955342,0.00576,88266.0,88254.0,0.0113359]
[1766156955644,0.00576,88266.0,88248.0,0.00496]
[1766156955840,0.00016992,88266.0,88259.0,0.0113352]
[1766156956138,0.00284,88274.0,88248.0,0.00512992]
[1766156956139,0.00284,88274.0,88256.0,0.0113357]
[1766156956346,0.02583945,88273.0,88256.0,0.0113357]
[1766156956553,0.00284,88274.0,88256.0,0.0113357]
[1766156956744,0.03717062,88273.0,88248.0,0.00512992]
[1766156956943,0.0113343,88268.0,88249.0,0.00172]
[1766156957132,0.0113345,88266.0,88249.0,0.0130566]
[1766156957331,0.0113345,88266.0,88248.0,0.00016992]
[1766156957537,0.0113348,88264.0,88248.0,0.00016992]
[1766156957744,0.00016992,88267.0,88248.0,0.00016992]
[1766156958344,0.0113345,88266.0,88248.0,0.00016992]
[1766156958735,0.00016992,88267.0,88252.0,0.0113361]
[1766156958931,0.00016992,88267.0,88248.0,0.00016992]
[1766156959236,0.02583846,88266.0,88248.0,0.00016992]
[1766156959442,0.0113356,88258.0,88248.0,0.00016992]
[1766156959636,0.0113356,88258.0,88241.0,0.00208]
[1766156959840,0.0113355,88258.0,88241.0,0.00208]
[1766156960045,0.00576,88263.0,88211.0,0.00011644]
[1766156960046,0.0113365,88251.0,88224.0,0.11330546]
[1766156960343,0.47104445,88260.0,88216.0,0.06377513]
[1766156960344,0.0113356,88257.0,88225.0,0.00576]
[1766156960536,0.00016992,88250.0,88232.0,0.00016992]
[1766156960737,0.01150642,88250.0,88232.0,0.00016992]
[1766156962351,0.0113331,88277.0,88232.0,0.00016992]
[1766156962543,1.47645458,88274.0,88232.0,0.00016992]
[1766156962852,0.0113344,88267.0,88232.0,0.00016992]
[1766156963150,0.02581458,88266.0,88233.0,0.00576]
[1766156963345,0.0113367,88249.0,88233.0,0.00576]
[1766156963741,0.00576,88254.0,88233.0,0.00576]
[1766156963941,0.00576,88254.0,88235.0,0.0113384]
[1766156964142,0.0170961,88254.0,88233.0,0.00576]
[1766156964343,0.0113363,88252.0,88233.0,0.00576]
[1766156964543,0.0113369,88248.0,88233.0,0.00576]
[1766156964749,0.47104445,88250.0,88215.0,0.011341]
[1766156964936,0.0113394,88228.0,88211.0,0.00011644]
[1766156965143,0.0113389,88231.0,88212.0,0.00312]
[1766156965454,0.011338,88239.0,88219.0,0.0113404]
[1766156965745,0.47104445,88260.0,88220.0,0.00017002]
[1766156965951,0.00017002,88238.0,88220.0,0.00017002]
[1766156966538,2e-08,88238.0,88220.0,0.00017002]
[1766156966851,0.0113351,88262.0,88243.0,0.0113373]
[1766156967240,1.4572208,88277.0,88234.0,0.00232]
[1766156967241,0.53207459,88290.0,88234.0,0.00232]
[1766156967455,0.32128014,88280.0,88250.0,0.0113364]
[1766156967651,0.0113357,88256.0,88235.0,0.0113383]
[1766156967844,0.00016993,88254.0,88237.0,0.00396993]
[1766156968445,0.00016993,88254.0,88237.0,0.00016993]
[1766156968747,0.0113364,88251.0,88237.0,0.00016993]
[1766156968953,0.00016993,88254.0,88237.0,0.00016993]
[1766156968954,0.0113362,88252.0,88237.0,0.00016993]
[1766156969254,0.00016993,88254.0,88237.0,0.00016993]
[1766156969453,0.00016993,88254.0,88240.0,0.0113377]
[1766156969757,0.00016993,88254.0,88238.0,0.0113379]
[1766156969955,0.00016993,88254.0,88240.0,0.0113377]
[1766156970249,0.00016993,88254.0,88237.0,0.00016993]
[1766156970448,0.00108,88272.0,88255.0,0.0113358]
[1766156970848,0.00108,88272.0,88257.0,0.0113355]
[1766156971040,0.00108,88272.0,88259.0,0.0113352]
[1766156971243,0.00576,88275.0,88252.0,0.0113362]
[1766156971451,0.00016993,88272.0,88255.0,0.00016993]
[1766156971846,0.00016993,88272.0,88261.0,0.0113351]
[1766156972257,0.00016993,88272.0,88263.0,0.0113347]
[1766156972655,0.0014,88288.0,88271.0,0.0113337]
[1766156972850,0.01359557,88298.0,88277.0,0.011333]
[1766156973055,0.00272,88297.0,88277.0,0.011333]
[1766156973251,0.0140506,88297.0,88273.0,0.0113335]
[1766156973554,0.0113306,88296.0,88273.0,0.0113335]
[1766156973856,0.0113311,88292.0,88276.0,0.00016993]
[1766156974057,0.0113315,88289.0,88276.0,0.00016993]
[1766156974447,0.00016983,88293.0,88276.0,3e-08]
[1766156974653,0.0113315,88289.0,88276.0,3e-08]
[1766156974846,0.01150093,88293.0,88276.0,3e-08]
[1766156975045,0.0113314,88290.0,88276.0,3e-08]
[1766156975245,0.00016983,88293.0,88276.0,3e-08]
[1766156975654,0.0113327,88280.0,88276.0,3e-08]
[1766156976847,0.00576,88284.0,88251.0,0.0113363]
[1766156977060,0.00576,88284.0,88240.0,0.32128014]
[1766156977061,0.0113332,88277.0,88257.0,0.0113356]
[1766156977757,0.00576,88284.0,88252.0,0.0038]
[1766156978063,0.00016993,88277.0,88250.0,0.00128]
[1766156978259,0.0113333,88276.0,88250.0,0.00128]
[1766156978460,0.00576,88275.0,88250.0,0.00128]
[1766156978758,0.011334,88270.0,88250.0,0.0126165]
[1766156978962,0.0113346,88265.0,88251.0,0.00016993]
[1766156979261,0.0113346,88265.0,88235.0,0.06310662]
[1766156979262,0.00576,88264.0,88236.0,0.0113382]
[1766156979454,0.0113354,88259.0,88237.0,0.00576]
[1766156979654,0.0113351,88261.0,88242.0,0.0113375]
[1766156979854,0.0113355,88259.0,88238.0,0.0113379]
[1766156980157,0.0113349,88263.0,88237.0,0.00576]
[1766156980357,0.00016993,88259.0,88251.0,0.0113363]
[1766156980559,0.0113333,88276.0,88255.0,0.0113358]
[1766156980755,0.0038,88275.0,88260.0,0.0113352]
[1766156980960,0.0113328,88279.0,88260.0,0.0113352]
[1766156981259,0.00576,88278.0,88262.0,0.0113349]
[1766156981453,0.0113331,88277.0,88261.0,0.00016993]
[1766156981653,0.011333,88277.0,88261.0,0.00016993]
[1766156981957,0.00226507,88298.0,88261.0,0.00016993]
[1766156982156,0.00226507,88298.0,88285.0,0.0113319]
[1766156982462,0.00226507,88298.0,88284.0,0.011332]
[1766156982960,0.0113307,88295.0,88272.0,0.0113336]
[1766156983163,0.00226507,88298.0,88282.0,0.00016993]
[1766156983457,0.00226507,88298.0,88289.0,0.0113314]
[1766156983656,0.0113288,88310.0,88291.0,0.0113311]
[1766156983864,0.0113288,88310.0,88287.0,0.0113316]
[1766156984162,0.0113288,88310.0,88290.0,0.0113313]
[1766156984353,1.76696014,88330.0,88287.0,0.00316]
[1766156984555,0.011328,88316.0,88300.0,0.00016993]
[1766156984759,0.0113286,88312.0,88300.0,0.00016993]
[1766156985657,0.0113285,88313.0,88300.0,0.00016993]
[1766156985859,0.00016983,88317.0,88304.0,0.0113295]
[1766156986063,0.00016983,88317.0,88301.0,0.00204]
[1766156986360,0.01149773,88317.0,88301.0,0.00204]
[1766156986756,0.00016983,88317.0,88277.0,1.44556]
[1766156986957,0.0113294,88306.0,88278.0,0.00304]
[1766156987164,0.0113289,88310.0,88288.0,0.0113316]
[1766156987356,0.0113289,88310.0,88290.0,0.0113314]
[1766156987553,0.00576,88312.0,88290.0,0.0038]
[1766156987757,0.0113303,88299.0,88292.0,3e-08]
[1766156987964,0.0113309,88294.0,88292.0,3e-08]
[1766156988460,0.0113304,88298.0,88292.0,3e-08]
[1766156988954,0.0113302,88300.0,88292.0,3e-08]
[1766156989559,0.0113308,88295.0,88292.0,3e-08]
[1766156989758,0.0113303,88298.0,88292.0,3e-08]
[1766156990252,0.011331,88293.0,88292.0,3e-08]
[1766156990666,0.0113304,88298.0,88292.0,3e-08]
[1766156991059,0.0113303,88298.0,88292.0,3e-08]
[1766156991260,0.0113299,88302.0,88292.0,3e-08]
[1766156991460,0.0113302,88300.0,88292.0,3e-08]
[1766156991655,0.0113305,88297.0,88292.0,3e-08]
[1766156992253,0.0113305,88298.0,88292.0,3e-08]
[1766156992458,0.00576,88312.0,88292.0,3e-08]
[1766156992660,0.0113291,88308.0,88292.0,3e-08]
[1766156993069,0.0113288,88310.0,88292.0,3e-08]
[1766156993271,0.0113288,88310.0,88293.0,0.0113309]
[1766156993470,0.00576,88311.0,88292.0,3e-08]
[1766156993871,0.00576,88311.0,88292.0,0.01133103]
[1766156994172,0.011329,88309.0,88292.0,3e-08]
[1766156994362,0.00576,88311.0,88292.0,3e-08]
[1766156994668,0.32128014,88310.0,88292.0,3e-08]
[1766156994967,0.00576,88311.0,88292.0,3e-08]
[1766156994968,0.0113305,88297.0,88292.0,3e-08]
[1766156995558,0.0113308,88295.0,88292.0,3e-08]
[1766156996769,0.00576,88302.0,88292.0,3e-08]
[1766156997266,0.00016983,88317.0,88292.0,3e-08]
[1766156997473,0.0048,88316.0,88299.0,0.0113301]
[1766156997971,0.0113286,88312.0,88293.0,0.0113309]
[1766156998167,0.0113286,88312.0,88295.0,0.0113306]
[1766156998472,0.0048,88316.0,88292.0,3e-08]
[1766156998672,0.0048,88316.0,88293.0,0.0113309]
[1766156998858,0.0161281,88316.0,88295.0,0.0113306]
[1766156999062,0.00226404,88338.0,88292.0,1.44528003]
[1766156999263,0.0113267,88327.0,88292.0,1.44528003]
[1766156999558,0.0113271,88324.0,88293.0,0.11324579]
[1766156999758,0.32128014,88330.0,88295.0,0.0113307]
[1766156999961,0.0113281,88316.0,88292.0,3e-08]
[1766157000166,0.01149843,88313.0,88293.0,0.015131]
[1766157000375,0.00016993,88313.0,88293.0,0.015131]
[1766157000568,0.00016993,88313.0,88296.0,0.0113305]
[1766157000875,0.0113285,88312.0,88293.0,0.0038]
[1766157001168,0.0113291,88308.0,88293.0,0.0038]
[1766157001368,0.0113286,88312.0,88293.0,0.0038]
[1766157001673,0.00016993,88313.0,88293.0,0.0038]
[1766157001864,0.00016993,88313.0,88302.0,0.0113298]
[1766157002060,0.00204,88334.0,88303.0,0.00576]
[1766157002260,0.00204,88334.0,88313.0,0.0113284]
[1766157002570,0.00204,88334.0,88276.0,0.08015132]
[1766157002770,0.0113284,88313.0,88280.0,0.32128014]
[1766157002969,0.011328,88317.0,88295.0,0.0113307]
[1766157003271,0.0001699,88305.0,88288.0,0.00016993]
[1766157003666,0.0001699,88305.0,88289.0,0.0170915]
[1766157004375,0.0113296,88304.0,88289.0,0.00576]
[1766157004581,0.0113301,88301.0,88288.0,0.00016993]
[1766157004869,0.0001699,88305.0,88288.0,0.00016993]
[1766157005070,0.0001699,88305.0,88291.0,0.0113311]
[1766157005276,0.0001699,88305.0,88288.0,0.00016993]
[1766157005870,0.0113274,88322.0,88302.0,0.0113297]
[1766157006063,0.0113267,88327.0,88305.0,0.0113294]
[1766157006271,0.0113265,88328.0,88296.0,0.00108]
[1766157006571,0.0113273,88322.0,88296.0,0.00108]
[1766157006770,0.32128014,88330.0,88297.0,0.0113304]
[1766157006976,0.0113272,88323.0,88303.0,0.0113297]
[1766157007173,0.011328,88317.0,88300.0,0.00016993]
[1766157007567,0.0113289,88309.0,88300.0,0.00016993]
[1766157007767,0.0113285,88313.0,88300.0,0.00016993]
[1766157007967,0.0056,88317.0,88273.0,0.0113335]
[1766157008178,0.0056,88317.0,88280.0,0.320931]
[1766157008378,0.0056,88317.0,88291.0,0.0113312]
[1766157008379,0.0113288,88311.0,88291.0,0.0113312]
[1766157008577,0.0113288,88311.0,88292.0,0.00576]
[1766157008965,0.0113291,88308.0,88293.0,0.00016993]
[1766157009476,0.00016993,88310.0,88293.0,0.00016993]
[1766157009477,0.0113299,88302.0,88293.0,0.00016993]
[1766157009683,0.0113294,88306.0,88292.0,0.00488]
[1766157009871,0.0113294,88306.0,88288.0,0.00576]
[1766157010379,0.0113289,88309.0,88289.0,0.0113315]
[1766157010577,0.0113293,88306.0,88290.0,0.00016993]
[1766157010877,0.00564,88307.0,88290.0,3e-08]
[1766157011072,0.0113298,88302.0,88290.0,3e-08]
[1766157011776,0.0113302,88299.0,88290.0,3e-08]
[1766157012477,0.011333,88278.0,88275.0,9e-08]
[1766157012684,0.320931,88270.0,88235.0,0.0113383]
[1766157012870,0.320931,88260.0,88238.0,0.0113379]
[1766157013068,0.0113343,88268.0,88226.0,0.0038]
[1766157013276,0.320931,88280.0,88249.0,0.0113366]
[1766157013471,0.320931,88270.0,88256.0,3e-08]
[1766157013675,0.0113343,88267.0,88227.0,0.11325733]
[1766157013877,0.0113343,88267.0,88218.0,0.00226712]
[1766157013878,0.0113361,88254.0,88228.0,0.00576]
[1766157014083,0.0170961,88254.0,88232.0,0.0113388]
[1766157014276,0.00576,88254.0,88235.0,0.0113384]
[1766157014677,0.00016993,88253.0,88238.0,0.0113379]
[1766157015273,0.00016993,88253.0,88237.0,0.0113382]
[1766157015482,0.00016993,88253.0,88236.0,0.00016993]
[1766157015681,0.00010975,88269.0,88256.0,0.0113357]
[1766157015881,0.00010975,88269.0,88252.0,0.0113361]
[1766157016090,0.0113342,88268.0,88248.0,0.0113367]
[1766157016286,0.00010975,88269.0,88252.0,0.0113362]
[1766157016787,0.00027968,88269.0,88252.0,0.01150613]
[1766157017589,0.00027968,88269.0,88255.0,0.0113358]
[1766157018684,1.44536,88298.0,88253.0,0.011336]
[1766157018885,0.0113323,88283.0,88252.0,0.00016993]
[1766157019096,0.0113335,88273.0,88253.0,0.011336]
[1766157019282,0.0113331,88277.0,88256.0,0.0113356]
[1766157019689,0.00016993,88275.0,88256.0,0.0113356]
[1766157019891,0.00016993,88275.0,88259.0,0.0113353]
[1766157020489,0.00016993,88275.0,88252.0,0.00016993]
[1766157020986,0.00016993,88275.0,88253.0,0.0004]
[1766157021287,0.320931,88270.0,88252.0,0.00016993]
[1766157021483,0.0113357,88256.0,88239.0,0.00576]
[1766157021785,0.0113355,88258.0,88239.0,0.00576]
[1766157022389,0.00576,88259.0,88239.0,0.00576]
[1766157022687,0.00016993,88258.0,88246.0,0.0113369]
[1766157023191,0.00016993,88258.0,88243.0,0.0113374]
[1766157023395,0.00016993,88258.0,88240.0,0.01150773]
[1766157023598,0.00016993,88258.0,88241.0,0.0113375]
[1766157023783,0.00016993,88258.0,88243.0,0.0113373]
[1766157024106,0.00016993,88258.0,88240.0,0.00016993]
[1766157024395,0.00016993,88258.0,88241.0,0.0113376]
[1766157024595,0.00016993,88258.0,88246.0,0.011337]
[1766157024796,0.00016993,88258.0,88243.0,0.0113374]
[1766157025190,0.00016993,88258.0,88245.0,0.011337]
[1766157025889,0.00016993,88258.0,88242.0,0.0113375]
[1766157026098,0.00016993,88258.0,88240.0,0.00016993]
[1766157026393,0.0113342,88268.0,88240.0,0.00016993]
[1766157026588,0.0038,88267.0,88240.0,0.00016993]
[1766157027190,0.0113338,88271.0,88252.0,0.0113362]
[1766157027389,0.00520993,88270.0,88255.0,0.0113358]
[1766157027590,0.00016993,88270.0,88253.0,0.00016993]
[1766157027792,0.00016993,88270.0,88254.0,0.0113359]
[1766157027996,0.0113344,88267.0,88253.0,0.00016993]
[1766157028298,0.0113352,88261.0,88242.0,0.00064]
[1766157028484,0.017095,88262.0,88245.0,0.011337]
[1766157028684,0.00576,88262.0,88247.0,0.0113368]
[1766157029087,0.0170951,88262.0,88244.0,0.0113372]
[1766157029293,0.0170951,88262.0,88246.0,0.0113369]
[1766157029492,0.00576,88262.0,88246.0,0.0113369]
[1766157029694,0.017095,88262.0,88244.0,0.00016993]
[1766157029894,0.0113356,88257.0,88242.0,0.00064]
[1766157030086,0.00576,88262.0,88242.0,0.00064]
[1766157030288,0.00576,88262.0,88237.0,0.0113381]
[1766157030685,0.0113361,88254.0,88237.0,0.0113381]
[1766157030995,0.0113361,88254.0,88237.0,0.01150803]
[1766157031395,0.0113356,88257.0,88239.0,0.0113378]
[1766157031898,0.00576,88262.0,88237.0,0.00016993]
[1766157032585,0.017095,88262.0,88243.0,0.0113373]
[1766157032784,0.011335,88262.0,88243.0,0.0113373]
[1766157033097,0.00476,88261.0,88245.0,0.0113371]
[1766157033688,0.0113378,88240.0,88237.0,3e-08]
[1766157033985,0.0113352,88260.0,88218.0,0.01360762]
[1766157033986,0.00576,88241.0,88219.0,0.0113404]
[1766157034493,0.00576,88241.0,88218.0,0.00226712]
[1766157034888,0.0113383,88237.0,88221.0,0.00016993]
[1766157035296,0.00016993,88238.0,88221.0,0.00016993]
[1766157035487,0.00016993,88238.0,88227.0,0.0113394]
[1766157035888,0.00016993,88238.0,88224.0,0.0113398]
[1766157036088,0.00016993,88238.0,88221.0,0.00016993]
[1766157036591,3e-08,88238.0,88221.0,0.00016993]
[1766157036786,0.1977,88277.0,88221.0,0.00016993]
[1766157036787,0.0113344,88267.0,88222.0,0.11333692]
[1766157036991,0.0113351,88261.0,88231.0,0.0113388]
[1766157037189,0.0113351,88261.0,88232.0,1.45164]
[1766157037389,0.00576,88265.0,88254.0,0.011336]
[1766157037700,0.00016993,88268.0,88258.0,0.0113354]
[1766157037895,0.00016993,88268.0,88255.0,0.0113358]
[1766157038105,0.00016993,88268.0,88251.0,0.01150613]
[1766157038599,0.0113348,88264.0,88251.0,0.00016993]
[1766157038796,0.0113343,88267.0,88251.0,0.00016993]
[1766157038991,0.00016993,88268.0,88254.0,0.0113359]
[1766157039387,0.0113336,88273.0,88254.0,0.0113359]
[1766157039388,0.0113328,88279.0,88261.0,0.011335]
[1766157039593,0.00488,88278.0,88261.0,0.011335]
[1766157039799,0.0113343,88268.0,88254.0,0.00576]
[1766157039990,0.0113337,88272.0,88254.0,0.00576]
[1766157040191,0.011334,88270.0,88254.0,0.00576]
[1766157040393,0.0113342,88268.0,88251.0,0.00016993]
[1766157040787,0.00016993,88271.0,88251.0,0.00016993]
[1766157041003,0.0113341,88269.0,88251.0,3e-08]
[1766157041193,0.00016993,88271.0,88251.0,3e-08]
[1766157041399,0.0113356,88257.0,88251.0,3e-08]
[1766157041590,0.0113352,88260.0,88251.0,3e-08]
[1766157041992,0.00548,88266.0,88251.0,3e-08]
[1766157042192,0.0113341,88269.0,88251.0,3e-08]
[1766157042604,0.0113344,88267.0,88251.0,3e-08]
[1766157042801,0.0113345,88266.0,88251.0,3e-08]
[1766157043406,0.0113341,88269.0,88251.0,3e-08]
[1766157043602,0.011334,88270.0,88251.0,3e-08]
[1766157043901,0.00016993,88271.0,88251.0,3e-08]
[1766157044501,0.00016993,88271.0,88256.0,0.0113356]
[1766157045099,0.0113346,88265.0,88252.0,0.00248]
[1766157045405,0.0113352,88261.0,88251.0,3e-08]
[1766157045606,0.0113348,88264.0,88251.0,3e-08]
[1766157046001,0.011335,88262.0,88251.0,3e-08]
[1766157046198,0.0113346,88265.0,88251.0,3e-08]
[1766157046398,0.0113342,88268.0,88251.0,3e-08]
[1766157046605,0.00016993,88271.0,88251.0,3e-08]
[1766157046799,0.02610212,88270.0,88251.0,3e-08]
[1766157047006,0.0113349,88263.0,88251.0,3e-08]
[1766157047404,0.0113352,88261.0,88251.0,3e-08]
[1766157048109,0.0113347,88264.0,88251.0,3e-08]
[1766157048308,0.00016993,88271.0,88251.0,3e-08]
[1766157048503,0.0113346,88265.0,88251.0,3e-08]
[1766157050010,0.0113344,88267.0,88251.0,3e-08]
[1766157050308,3e-08,88271.0,88251.0,3e-08]
[1766157050613,0.0113319,88286.0,88268.0,0.0113341]
[1766157050809,0.03186505,88285.0,88261.0,0.00484]
[1766157051012,0.02610505,88284.0,88261.0,0.00484]
[1766157051211,0.0113331,88277.0,88261.0,0.00484]
[1766157051410,0.00576,88285.0,88261.0,0.00484]
[1766157051710,0.011334,88270.0,88264.0,3e-08]
[1766157052006,0.0113342,88268.0,88264.0,3e-08]
[1766157052314,0.0113345,88266.0,88264.0,3e-08]
[1766157052508,0.0170941,88269.0,88264.0,3e-08]
[1766157052713,0.00576,88269.0,88264.0,3e-08]
[1766157053008,0.0113328,88279.0,88264.0,3e-08]
[1766157053309,0.011333,88277.0,88264.0,3e-08]
[1766157053509,0.0610523,88306.0,88264.0,3e-08]
[1766157053715,0.0113255,88336.0,88303.0,0.0113296]
[1766157053908,0.01127823,88342.0,88309.0,0.0113289]
[1766157054212,0.00136,88337.0,88311.0,0.0113286]
[1766157054612,0.0113262,88330.0,88315.0,0.00016983]
[1766157054808,0.0113264,88329.0,88315.0,0.00016983]
[1766157055105,0.00016983,88333.0,88310.0,0.00376]
[1766157055310,0.00016983,88333.0,88290.0,0.47126675]
[1766157055510,0.00016983,88333.0,88271.0,0.0113337]
[1766157055511,0.0113269,88325.0,88291.0,1.44692]
[1766157055712,0.0113269,88325.0,88306.0,0.0113293]
[1766157055909,0.0113269,88326.0,88307.0,0.00576]
[1766157056112,0.0113272,88323.0,88307.0,0.00016983]
[1766157056502,0.0113272,88323.0,88306.0,0.00356]
[1766157057513,0.0113272,88323.0,88306.0,0.00372983]
[1766157057821,0.0113272,88323.0,88306.0,0.00396983]
[1766157059514,0.00016983,88324.0,88290.0,0.06232021]
[1766157059712,0.01149683,88324.0,88278.0,0.0113329]
[1766157059913,0.01149683,88324.0,88289.0,0.0113314]
[1766157060110,0.00016983,88324.0,88290.0,0.00376]
[1766157060308,0.0113284,88313.0,88293.0,0.011331]
[1766157060506,0.00016983,88324.0,88275.0,0.0113332]
[1766157060507,0.0113289,88310.0,88294.0,0.00011329]
[1766157060709,0.01149853,88311.0,88294.0,0.00011329]
[1766157061018,0.00016983,88311.0,88294.0,0.00011329]
[1766157061221,0.00016983,88311.0,88294.0,3.29e-06]
[1766157061414,0.00016983,88311.0,88260.0,0.47126675]
[1766157061714,0.0113298,88303.0,88282.0,0.0113324]
[1766157061911,0.0113298,88303.0,88283.0,0.00576]
[1766157062311,0.0113294,88306.0,88287.0,0.0113317]